Cogmind - Beta 14 *** ADVENTURER MODE // 2025.03.18 @ 18:07:59 Player: Morii Result: Destroyed by YI-UF0 with YI-UF0's Doublenader Performance ------------- Evolutions (1) 500 Regions Visited (3) 600 Robots Destroyed (43) 215 Value Destroyed (985) 985 Prototype IDs (3) 60 Alien Tech Used (0) 0 Bonus (0) 0 TOTAL SCORE: 2360 Bonus ------- None Cogmind --------- Core Integrity 0/400 Matter 201/300 Energy 59/100 System Corruption 5% Temperature Cool (2) Movement Walking (120) Location -9/Mines Parts ------- > --- POWER (2) -------- (None) > --- PROPULSION (2) --- Aluminum Leg > --- UTILITY (3) ------ Salvage Targeting Computer Hardened Light Armor Plating > --- WEAPON (2) ------- Light Assault Rifle Mini Grenade Launcher > --- INVENTORY (5) ---- High-capacity Storage Unit Hammer Peak State ------------ > --- POWER ------------ Improved Ion Engine Improved Ion Engine > --- PROPULSION ------- Aluminum Leg Aluminum Leg > --- UTILITY ---------- Heat Sink Salvage Targeting Computer Light Armor Plating > --- WEAPON ----------- Mini Grenade Launcher Hammer > --- INVENTORY -------- Aluminum Leg High-capacity Storage Unit Hardened Light Armor Plating [Rating: 13] Favorites ----------- Power Ion Engine Engine Ion Engine Propulsion Aluminum Leg Leg Aluminum Leg Wheel Wheel Utility Signal Interpreter Device Heat Sink Processor Signal Interpreter Protection Light Armor Plating Weapon Assault Rifle Ballistic Gun Assault Rifle Launcher Grenade Launcher Impact Weapon Hammer Slashing Weapon Mining Claw Build | -11 -10 -9 -9 ------- Run | Yrd Mat Mat Min Slots Evolved 2 | . . 2 . Power 1 | . . 1 . Propulsion . | . . . . Utility 1 | . . 1 . Weapon . | . . . . Parts Attached 42 | 5 13 11 13 Power 9 | 1 2 3 3 Engine 9 | 1 2 3 3 Core . | . . . . Reactor . | . . . . Propulsion 11 | 2 4 1 4 Treads . | . . . . Leg 7 | . 2 1 4 Wheel 4 | 2 2 . . Hover . | . . . . Flight . | . . . . Utility 8 | . 2 5 1 Device 3 | . 1 2 . Storage . | . . . . Processor 2 | . 1 1 . Hackware . | . . . . Protection 3 | . . 2 1 Artifact . | . . . . Weapon 14 | 2 5 2 5 Energy Gun . | . . . . Energy Cannon . | . . . . Ballistic Gun 7 | 2 1 2 2 Ballistic Cannon . | . . . . Launcher 4 | . 3 . 1 Special Weapon . | . . . . Impact Weapon 2 | . 1 . 1 Slashing Weapon 1 | . . . 1 Piercing Weapon . | . . . . Special Melee Weapon . | . . . . Unidentified Prototypes 1 | . . 1 . Parts Lost 25 | . 5 7 13 Power 6 | . 1 1 4 Propulsion 7 | . 2 1 4 Utility 6 | . . 4 2 Weapon 6 | . 2 1 3 Highest Loss Streak 7 | . 4 5 7 To Critical Strikes . | . . . . Average Slot Usage (%) 80 | . 86 81 70 Engine 15 | . 13 19 6 Leg 13 | . 2 21 12 Wheel 7 | . 23 . . Device 8 | . 5 9 10 Processor 8 | . 13 4 11 Protection 3 | . . 3 10 Ballistic Gun 11 | . 8 15 7 Launcher 3 | . 8 . 4 Impact Weapon 6 | . 11 5 3 Peak Build Rating 13 | 5 7 12 13 Average Rating 8 | 3 6 9 8 On Entrance 6 | . 5 7 12 Naked Turns . | . . . . Heaviest Build 25 | 7 11 25 21 Greatest Support 20 | 20 20 20 20 Greatest Overweight (x) 2 | . 2 2 2 Average Overweight (x) . | . . . 1 Largest Inventory Capacity 5 | 5 5 5 5 Average Capacity 5 | 5 5 5 5 Most Carried 5 | 2 5 5 5 Average Carried 3 | . 3 4 3 Final Capacity 5 | 5 5 5 5 Final Carried 5 | . 3 5 2 Class Distribution -------------------- 90% | Mutant 9% | Scavenger-Mutant Dominant Class ---------------- Mutant | -10/Materials Mutant | -9/Materials Mutant | -9/Mines Resources | -11 -10 -9 -9 ----------- Run | Yrd Mat Mat Min Matter Collected 1016 | 280 157 362 217 Remotely . | . . . . Salvage Created 1196 | 46 245 682 223 Parts 81 | 3 25 39 14 Haulers Intercepted 1 | . 1 . . Recyclers Shooed 1 | . 1 . . Parts Field Recycled . | . . . . Retrieved Matter . | . . . . Parts Self-Destructed . | . . . . Prevented . | . . . . Kills | -11 -10 -9 -9 ------- Run | Yrd Mat Mat Min Combat Hostiles Destroyed 35 | 1 11 16 7 Melee 1 | . 1 . . Guns 21 | 1 3 14 3 AOE 10 | . 6 . 4 Classes Destroyed 7 | 1 3 3 . Worker 1 | . . 1 . Hauler 1 | . 1 . . Watcher 6 | . 3 3 . Swarmer 17 | . 8 6 3 Grunt 11 | 1 3 3 4 Brawler 1 | . . 1 . Sentry 6 | . . 6 . Best Kill Streak 6 | 1 5 6 3 Combat Bots Only 6 | 1 5 6 3 Max Kills in Single Turn 3 | 1 3 1 3 Gunslinging . | . . . . Exploded 3 | . 3 . 3 Melee 1 | . 1 . . Uniques/NPCs Destroyed . | . . . . Combat | -11 -10 -9 -9 -------- Run | Yrd Mat Mat Min Hostile Shots Fired 273 | 7 63 132 71 Missed 96 | 4 21 53 18 Damage Taken 2113 | 25 378 799 911 Core 478 | . 67 85 326 Absorbed by Shields . | . . . . Ignored by Resistances 635 | 9 117 240 269 Core Remaining (%) 86 | 100 73 . . Volleys Fired 106 | 5 14 48 39 Largest 2 | 2 1 2 2 Hottest 50 | 40 30 43 50 Shots Fired 156 | 10 14 83 49 Gun 140 | 10 6 83 41 Cannon . | . . . . Launcher 16 | . 8 . 8 Special . | . . . . Kinetic 140 | 10 6 83 41 Thermal . | . . . . Explosive 16 | . 8 . 8 Electromagnetic . | . . . . Robot Hit Streak 17 | 5 11 14 17 Robot Miss Streak 3 | 1 1 3 2 Penetration Max . | . . . . Secondary Targets 2 | . . 2 . Max Gunslinging Chain 1 | . . 1 . Shots Hit Robots 146 | 8 22 75 41 Core Hits 61 | 2 15 27 17 Critical Kills . | . . . . Critical Parts Destroyed 2 | . . 2 . Critical Strikes 2 | . . 2 . Smash 2 | . . 2 . Melee Attacks 24 | . 13 11 . Impact 24 | . 13 11 . Slashing . | . . . . Piercing . | . . . . Sneak Attacks 1 | . 1 . . Combat Hostiles . | . . . . Follow-up Attacks . | . . . . Damage Inflicted 2665 | 96 794 1101 674 Guns 1438 | 96 62 880 400 Cannons . | . . . . Explosions 736 | . 462 . 274 Melee 491 | . 270 221 . Ramming . | . . . . Kinetic 1438 | 96 62 880 400 Thermal . | . . . . Explosive 736 | . 462 . 274 Electromagnetic . | . . . . Impact 491 | . 270 221 . Slashing . | . . . . Piercing . | . . . . Highest Corruption 5 | . . 5 5 Average Corruption 4 | . . 4 5 Corruption Purged . | . . . . Corruption Blocked . | . . . . Effects 18 | . . 10 8 Message Errors 4 | . . 2 2 Matter Fused 6 | . . 5 1 Heat Flow Errors 1 | . . . 1 Parts Rejected 1 | . . . 1 Data Loss (minor) 1 | . . 1 . Data Loss (major) 2 | . . 1 1 Misfires 2 | . . 1 1 Weapon Failures 1 | . . . 1 Overload Shots . | . . . . Overflow Damage 105 | . 32 63 10 Projectiles . | . . . . Explosions 41 | . 31 . 10 Melee 64 | . 1 63 . Knockbacks . | . . . . Impact . | . . . . Kinetic . | . . . . Secondary . | . . . . Self-Inflicted Damage 106 | . 81 . 25 Shots 4 | . 3 . 1 Rammed . | . . . . Targets Rammed . | . . . . Kicked . | . . . . Crushed . | . . . . Highest Temperature 161 | . . 12 161 Average Temperature 38 | . . 6 72 Received Heat Transfer 672 | 18 36 351 267 Siege Activations . | . . . . Robots Corrupted 4 | . 1 3 . Combat Hostiles 3 | . 1 2 . Parts Fried 6 | . 1 5 . Impact Corruptions 4 | . 1 3 . Robots Melted . | . . . . Combat Hostiles . | . . . . Parts Melted . | . . . . Heat Transferred . | . . . . Parts Sabotaged . | . . . . Parts Stolen . | . . . . Parts Stripped . | . . . . Power Chain Reactions . | . . . . Alert | -11 -10 -9 -9 ------- Run | Yrd Mat Mat Min Peak Influence 367 | 20 243 367 264 Initial 121 | . 11 50 121 Average 151 | 1 105 190 170 Maximum Alert Level 1 | . 1 1 1 Low Security (%) 69 | 100 78 56 79 Level 1 30 | . 21 43 20 Level 2 . | . . . . Level 3 . | . . . . Level 4 . | . . . . Level 5 . | . . . . High Security . | . . . . Max Security . | . . . . Squads Dispatched 3 | . 1 2 . Investigation 1 | . 1 . . Extermination . | . . . . Reinforcement 2 | . . 2 . Assault . | . . . . Garrison . | . . . . Intercept . | . . . . Searches Triggered . | . . . . Construction Impeded . | . . . . Haulers Reinforced . | . . . . Active Scanning Responses . | . . . . Cargo Convoy Interrupts . | . . . . Stealth | -11 -10 -9 -9 --------- Run | Yrd Mat Mat Min Distress Signals 2 | . . 2 . Communications Jammed . | . . . . Distress Signals . | . . . . Times Spotted 52 | 1 14 27 10 Peak Tracking Total 6 | 1 6 6 4 Tactical Retreats 3 | . . 2 1 Traps | -11 -10 -9 -9 ------- Run | Yrd Mat Mat Min Traps Triggered 3 | . 2 1 . Indirectly . | . . . . Trap Hack Attempts . | . . . . Triggered . | . . . . Disarmed . | . . . . Reprogrammed . | . . . . Reused . | . . . . Traps Extracted . | . . . . Installed . | . . . . Triggered . | . . . . Machines | -11 -10 -9 -9 ---------- Run | Yrd Mat Mat Min Machines Disabled 1 | . 1 . . Max in Single Turn 1 | . 1 . . Machines Repaired . | . . . . Machines Dismantled . | . . . . Machines Sabotaged . | . . . . Overloaded Fab Kills . | . . . . Hacking | -11 -10 -9 -9 --------- Run | Yrd Mat Mat Min Machines Accessed 7 | . 4 3 . Terminals 5 | . 3 2 . Fabricators . | . . . . Repair Stations . | . . . . Recycling Units 2 | . 1 1 . Scanalyzers . | . . . . Garrison Access . | . . . . Total Hacks 16 | . 10 6 . Successful 11 | . 6 5 . Failed 5 | . 4 1 . Catastrophic . | . . . . Database Lockouts . | . . . . Manual . | . . . . Terminals 11 | . 7 4 . Fabricators . | . . . . Repair Stations . | . . . . Recycling Units 5 | . 3 2 . Scanalyzers . | . . . . Garrison Access . | . . . . Terminal Hacks 8 | . 4 4 . Record 1 | . . 1 . Prototype ID Bank 1 | . 1 . . Recycling Unit Index 1 | . 1 . . Dispatch Records 3 | . 1 2 . Security Status 1 | . . 1 . Registered Components 1 | . 1 . . Fabricator Hacks . | . . . . Repair Station Hacks . | . . . . Recycling Unit Hacks 3 | . 2 1 . Report Inventory 1 | . 1 . . Retrieve Matter 1 | . 1 . . Retrieve Components 1 | . . 1 . Scanalyzer . | . . . . Garrison Access Hacks . | . . . . Unauthorized Hacks . | . . . . Terminals . | . . . . Fabricators . | . . . . Repair Stations . | . . . . Recycling Units . | . . . . Scanalyzers . | . . . . Garrison Access . | . . . . Data Cores Recovered . | . . . . Used . | . . . . Hacking Detections 6 | . 4 2 . Full Trace Events 2 | . 2 . . Feedback Events . | . . . . Feedback Blocked . | . . . . Robot Schematics Acquired . | . . . . Robots Built . | . . . . Authchips . | . . . . Time . | . . . . Total Robot Build Rating . | . . . . Part Schematics Acquired . | . . . . Parts Built . | . . . . Authchips . | . . . . Time . | . . . . Total Part Build Rating . | . . . . Parts Repaired . | . . . . Time . | . . . . Parts Recycled . | . . . . Recycled Matter . | . . . . Retrieved Matter . | . . . . Retrieved Components 9 | . . 9 . Parts Scanalyzed . | . . . . Part Schematics Acquired . | . . . . Parts Damaged . | . . . . Bothacking | -11 -10 -9 -9 ------------ Run | Yrd Mat Mat Min Used RIF Installer . | . . . . Robots Hacked . | . . . . Non-combat . | . . . . Combat . | . . . . Robot Hacks Applied . | . . . . Relay Couplers Released . | . . . . Fabnet Peak Effective % . | . . . . Robots Rewired . | . . . . Allies Hacked . | . . . . Hacks Repelled . | . . . . Allies | -11 -10 -9 -9 -------- Run | Yrd Mat Mat Min Total Allies . | . . . . Largest Group . | . . . . Highest-Rated Group . | . . . . Highest-Rated Ally . | . . . . Total Orders . | . . . . Ally Attacks . | . . . . Total Damage . | . . . . Kills . | . . . . Allies Corrupted . | . . . . Allies Melted . | . . . . Intel | -11 -10 -9 -9 ------- Run | Yrd Mat Mat Min Robot Analysis Total . | . . . . Derelict Logs Recovered . | . . . . Drone Launches . | . . . . Drone Recoveries . | . . . . Exploration | -11 -10 -9 -9 ------------- Run | Yrd Mat Mat Min Turns Passed 1550 | 65 490 699 296 Spaces Moved 975 | 57 425 367 126 Core 95 | 18 15 . 62 Treads . | . . . . Legs 464 | . 33 367 64 Wheels 416 | 39 377 . . Hover . | . . . . Flight . | . . . . Fastest Speed 50 | 50 80 120 100 Average Speed 107 | 70 85 125 149 Slowest Speed 260 | 80 150 260 190 Overloaded Moves . | . . . . Propulsion Burnouts . | . . . . Robots Hopped . | . . . . Cave-ins Triggered . | . . . . Exploration Rate (%) 40 | 6 78 35 43 Regions Visited 3 Branch Regions 1 Pre-discovered Areas . | . . . . Known Exits Taken 1 | . 1 . . Unknown Exits Taken 2 | 1 . 1 . Scrap Searched . | . . . . Spaces Dug . | . . . . Terrain Destroyed 112 | . 62 . 50 Melee . | . . . . Projectile . | . . . . AOE 112 | . 62 . 50 Terrain Rammed . | . . . . Walls Destroyed . | . . . . Machines Disabled . | . . . . Actions | -11 -10 -9 -9 --------- Run | Yrd Mat Mat Min Total 1273 | 71 516 500 186 Wait 87 | . 30 56 1 Move 972 | 56 424 366 126 Hop . | . . . . Pick Up 35 | 5 15 8 7 Fast Attach 9 | . 5 3 1 Attach 26 | 5 5 6 10 Detach . | . . . . Swap 7 | . 3 2 2 Drop 7 | . 7 . . Fire 106 | 5 14 48 39 Melee 24 | . 13 11 . Ram . | . . . . Kick . | . . . . Crush . | . . . . Escape Stasis . | . . . . Rewire . | . . . . Trap . | . . . . Miscellaneous . | . . . . Route ------- -11/Scrapyard -10/Materials (discovered 3 exits: *Mat x3) -9/Materials -9/Mines (discovered 1 exit: [*Mat]) History --------- Turn | Location | Event 2 | -11/Scrapyard | Met Revision 17 42 | -11/Scrapyard | Discovered new exit (range 8) 66 | -11/Scrapyard | Entered Materials 142 | -10/Materials | Discovered new exit (range 7) 314 | -10/Materials | Build established: Mutant 318 | -10/Materials | Discovered new exit (range 15) 506 | -10/Materials | Lost 4 parts (1p2n1w) 519 | -10/Materials | Discovered new exit (range 16) 555 | -10/Materials | Identified exit to Materials 556 | -10/Materials | Entered another Materials area 556 | -9/Materials | Evolved 2 slots: Power x1, Utility x1 865 | -9/Materials | Lost 5 parts (1n3u1w) 1248 | -9/Materials | Discovered new exit (range 7) 1255 | -9/Materials | Entered Mines 1318 | -9/Mines | Lost 4 parts (1p2n1w) 1361 | -9/Mines | Received a Rocket Launcher from a helpful Derelict 1525 | -9/Mines | Discovered new exit (range 5) 1536 | -9/Mines | Core integrity fell below 50% 1546 | -9/Mines | Core integrity fell below 20% 1551 | -9/Mines | Destroyed by YI-UF0 with YI-UF0's Doublenader Last Messages --------------- Acquired Lgt. Assault Rifle. Acquired 9 matter. U8RH1Q Heat Sink destroyed. R-06 Scavenger collects Flight Unit. Lgt. Assault Rifle destroyed. The unstable cave ceiling collapses. Map ----- +----------------------------------------------------+ | ?????????????????????????????????### | | ???????????????????????????????????## | | ????????????????????????????????????## | | ?????????????????????????????????????# | | ?????????????????????????????????????# | | ????????????????????????????????????## | | ???????????#####???????????????????## | | ????????? ????????#####??????# | | ??????? ???# #### #?????# | | ????? ???# ##???## | | ????? ???????# ###### | | ?????? ???????# | | ??????? ???????### | | ??????? ??########## ### | | ???????? ??# #?## #?# | | ????????? ??# ! !! #??## #?# | | ?????????? ??# !!! ##?## ##?# | | ??????????? ??# ! #?# ##??# | | ????????#### #?## !!! #?# ##??## | | ????????# ### ### #???? | | ???????## ## * # #???? | | ??????## ### #???? | | ??????# #?### ##???? | | ??????# r ##???## ##????? | | ??????# ##?????#######?????? | | ??????# @ #??????????????????? | | ??????# # #??????????????? | | ??????### #?????????????? | | ??????? < #??????????? | | ??????# #??????????? | | ??????# = g ??????????? | | ??????# ??????????? | | ??????## # ??????????? | | ???????## ## ## ??????????? | | ????????##### #?# # # ???????????? | | ????????????? ???######?##???????????? | | ????????????? ???????????????????????? | | ????????????? ???????????????????????? | | ?????????????#???????????????????????? | | ?????????????????????????????????????? | | ?????????????????????????????????????? | | ?????????????????????????????????????? | | ?????????????????????????????????????? | | ?????????????????????????????????????? | | ?????????????????????????????????????? | | ?????????????????????????????????????? | | ?????????????????????????????????????? | | ?????????????????????????????????????? | | ?????????????????????????????????????? | | ?????????????????????????????????????? | +----------------------------------------------------+ Best States ------------- Heat Dissipation 38 Energy Generation 19 Energy Capacity 430 Matter Stores 300 Matter Capacity 300 Sight Range 16 Terrain Scan Density 10 Armor Coverage 225 Resistance: KI 20 Resistance: TH 20 Resistance: EX 20 Resistance: EM 20 Resistance: I 20 Resistance: S 20 Resistance: P 20 Evasion (%) 55 Salvage Targeting 1 Offensive Hacking 10 Item Schematics ----------------- None Robot Schematics ------------------ None Fabricated ------------ Nothing Alien Tech Used ----------------- None Achievements -------------- None Challenges ------------ None Game ------ Seed DeepCompactConstruct Manual? 0 Play Time 00:23:20 Cumulative 3.4 hours Start 2025.03.18 @ 16:45:15 End 2025.03.18 @ 18:07:59 Sessions 1 Manual Loads 0 Difficulty Adventurer Special Mode None Game No. 3 Rogue 0 Adventurer 3 Explorer 0 Win Type - Total 0 Types 0/0/0/0/0/0/0/0/0 Lore% 0 Gallery% 10 Achievement% 10 Wizard Run 0 Options --------- Layout 1 ASCII 0 Keyboard 0 Movement Mouse Keybinds 0 Fullscreen 1 Font 32/SmallcapsGlow Map View 50x40 Zoom Use 0% Tactical HUD 0 Map Filters NONE Filters NONE Steam 1 RUN: 5abe9910-4d51-4678-bb4d-cc5e92fad89a